[Event "*** Titled Tuesday Blitz"]
[Site "Chess.com"]
[Date "2018.01.02"]
[Round "2"]
[White "Divertissement"]
[Black "OparinGrigoriy"]
[Result "1/2-1/2"]
[WhiteElo "2423"]
[BlackElo "2721"]
[TimeControl "180+2"]
[EndTime "13:23:52 PST"]
[Termination "Game drawn by repetition"]

1. Nf3 {[%clk 0:03:01.9]} 1... d5 {[%clk 0:02:59.9]} 2. d4 {[%clk 0:02:59]} 2...
Nf6 {[%clk 0:02:59.9]} 3. c4 {[%clk 0:02:59.6]} 3... e6 {[%clk 0:03:00.7]} 4.
Nc3 {[%clk 0:02:55]} 4... Be7 {[%clk 0:03:01.6]} 5. Bf4 {[%clk 0:02:54.7]} 5...
O-O {[%clk 0:03:02.4]} 6. e3 {[%clk 0:02:54.8]} 6... Nbd7 {[%clk 0:03:03.7]} 7.
c5 {[%clk 0:02:53.4]} 7... Nh5 {[%clk 0:03:03]} 8. Bd3 {[%clk 0:02:50.3]} 8...
Nxf4 {[%clk 0:03:03.9]} 9. exf4 {[%clk 0:02:51.8]} 9... b6 {[%clk 0:03:05.8]}
10. b4 {[%clk 0:02:41.6]} 10... a5 {[%clk 0:03:07]} 11. a3 {[%clk 0:02:42.4]}
11... c6 {[%clk 0:03:08.5]} 12. O-O {[%clk 0:02:38.5]} 12... Qc7 {[%clk
0:03:09.5]} 13. g3 {[%clk 0:02:38.3]} 13... Ba6 {[%clk 0:03:07.9]} 14. Re1
{[%clk 0:02:08.7]} 14... Bf6 {[%clk 0:03:06.6]} 15. Ne5 {[%clk 0:02:04]} 15...
Bxd3 {[%clk 0:03:03.1]} 16. Qxd3 {[%clk 0:02:02.6]} 16... Bxe5 {[%clk
0:03:04.2]} 17. fxe5 {[%clk 0:02:03.1]} 17... Ra7 {[%clk 0:03:05.7]} 18. Ra2
{[%clk 0:01:09.8]} 18... Rfa8 {[%clk 0:03:04.4]} 19. Rea1 {[%clk 0:01:09.3]}
19... b5 {[%clk 0:02:55.6]} 20. f4 {[%clk 0:01:04]} 20... Nf8 {[%clk 0:02:49.4]}
21. Qc2 {[%clk 0:00:54.4]} 21... Ng6 {[%clk 0:02:46]} 22. Nd1 {[%clk 0:00:48.9]}
22... Ne7 {[%clk 0:02:40]} 23. Ne3 {[%clk 0:00:49.7]} 23... Qd8 {[%clk
0:02:38.8]} 24. Kg2 {[%clk 0:00:35.6]} 24... Ra6 {[%clk 0:02:38.7]} 25. a4
{[%clk 0:00:30.2]} 25... Qb8 {[%clk 0:02:14.1]} 26. axb5 {[%clk 0:00:30.4]}
26... Qxb5 {[%clk 0:02:16]} 27. bxa5 {[%clk 0:00:31.7]} 27... Rxa5 {[%clk
0:01:47.8]} 28. Rxa5 {[%clk 0:00:31.1]} 28... Rxa5 {[%clk 0:01:49.7]} 29. Rb1
{[%clk 0:00:18.8]} 29... Qa6 {[%clk 0:01:50.5]} 30. Rb8+ {[%clk 0:00:15.9]}
30... Nc8 {[%clk 0:01:51.5]} 31. f5 {[%clk 0:00:17.4]} 31... g6 {[%clk
0:01:45.6]} 32. fxe6 {[%clk 0:00:18.1]} 32... fxe6 {[%clk 0:01:46.8]} 33. Ng4
{[%clk 0:00:18.1]} 33... Ra2 {[%clk 0:01:41.4]} 34. Rb2 {[%clk 0:00:19.6]} 34...
Rxb2 {[%clk 0:01:37.1]} 35. Qxb2 {[%clk 0:00:21.5]} 35... Ne7 {[%clk 0:01:34.4]}
36. Nf6+ {[%clk 0:00:21.5]} 36... Kg7 {[%clk 0:01:30.1]} 37. Qf2 {[%clk
0:00:21]} 37... Qc8 {[%clk 0:00:59.7]} 38. g4 {[%clk 0:00:22.1]} 38... Qa8
{[%clk 0:00:39.4]} 39. Nd7 {[%clk 0:00:20]} 39... Ng8 {[%clk 0:00:40.4]} 40. Nf6
{[%clk 0:00:12.6]} 40... Nh6 {[%clk 0:00:39.6]} 41. h3 {[%clk 0:00:12.9]} 41...
Nf7 {[%clk 0:00:32.1]} 42. Nd7 {[%clk 0:00:13]} 42... Kg8 {[%clk 0:00:21.3]} 43.
Nf6+ {[%clk 0:00:12.3]} 43... Kg7 {[%clk 0:00:22]} 44. Nd7 {[%clk 0:00:13.8]}
44... Qa1 {[%clk 0:00:15.2]} 45. Qf6+ {[%clk 0:00:13.8]} 45... Kg8 {[%clk
0:00:16.8]} 46. Qe7 {[%clk 0:00:12.1]} 46... Qb2+ {[%clk 0:00:18.2]} 47. Kh1
{[%clk 0:00:12.6]} 47... Qc1+ {[%clk 0:00:19]} 48. Kg2 {[%clk 0:00:14.1]} 48...
Qd2+ {[%clk 0:00:19.7]} 49. Kh1 {[%clk 0:00:15.4]} 49... Qe1+ {[%clk 0:00:21]}
50. Kg2 {[%clk 0:00:16.8]} 50... Qe2+ {[%clk 0:00:22]} 51. Kh1 {[%clk
0:00:18.1]} 51... Qf1+ {[%clk 0:00:22.5]} 52. Kh2 {[%clk 0:00:19.5]} 52... Qf4+
{[%clk 0:00:21.6]} 53. Kh1 {[%clk 0:00:20.1]} 53... Qf3+ {[%clk 0:00:20]} 54.
Kh2 {[%clk 0:00:21.5]} 54... Qf2+ {[%clk 0:00:21.4]} 55. Kh1 {[%clk 0:00:22.7]}
55... Qf1+ {[%clk 0:00:17.1]} 56. Kh2 {[%clk 0:00:22.6]} 56... Qe2+ {[%clk
0:00:18.6]} 57. Kh1 {[%clk 0:00:23.3]} 57... Qe4+ {[%clk 0:00:20.2]} 58. Kh2
{[%clk 0:00:24.3]} 58... Qc2+ {[%clk 0:00:21.6]} 59. Kh1 {[%clk 0:00:25.2]}
59... Qd1+ {[%clk 0:00:23]} 60. Kh2 {[%clk 0:00:26.2]} 60... Qd2+ {[%clk
0:00:24.5]} 61. Kh1 {[%clk 0:00:26.6]} 61... Qe1+ {[%clk 0:00:26.1]} 62. Kh2
{[%clk 0:00:27.7]} 62... Qe2+ {[%clk 0:00:27.1]} 63. Kh1 {[%clk 0:00:27.2]}
1/2-1/2

[Event "*** Titled Tuesday Blitz"]
[Site "Chess.com"]
[Date "2018.01.02"]
[Round "2"]
[White "BillCoe"]
[Black "Rhinos1"]
[Result "1-0"]
[WhiteElo "1947"]
[BlackElo "2011"]
[TimeControl "180+2"]
[EndTime "13:23:56 PST"]
[Termination "BillCoe won by checkmate"]

1. e4 {[%clk 0:03:01.9]} 1... e5 {[%clk 0:02:58.2]} 2. Nf3 {[%clk 0:03:02.7]}
2... Nc6 {[%clk 0:02:58.6]} 3. Bb5 {[%clk 0:03:04.1]} 3... a6 {[%clk 0:02:57.6]}
4. Ba4 {[%clk 0:03:04.8]} 4... d6 {[%clk 0:02:57.3]} 5. O-O {[%clk 0:03:04.5]}
5... Bd7 {[%clk 0:02:57.3]} 6. c3 {[%clk 0:03:01]} 6... Nge7 {[%clk 0:02:56.2]}
7. d4 {[%clk 0:03:00.3]} 7... Ng6 {[%clk 0:02:44.6]} 8. h3 {[%clk 0:02:45.5]}
8... Be7 {[%clk 0:02:43.6]} 9. Be3 {[%clk 0:02:44.1]} 9... O-O {[%clk
0:02:42.5]} 10. Nbd2 {[%clk 0:02:41.2]} 10... Kh8 {[%clk 0:02:31.3]} 11. Nh2
{[%clk 0:02:26.7]} 11... f5 {[%clk 0:02:22.1]} 12. exf5 {[%clk 0:02:15.8]} 12...
Bxf5 {[%clk 0:02:06.3]} 13. Bxc6 {[%clk 0:02:08.8]} 13... bxc6 {[%clk
0:02:04.8]} 14. dxe5 {[%clk 0:02:09.5]} 14... Nxe5 {[%clk 0:01:58.7]} 15. Ndf3
{[%clk 0:02:10.2]} 15... Nxf3+ {[%clk 0:01:39.8]} 16. Nxf3 {[%clk 0:02:08.7]}
16... d5 {[%clk 0:01:33.8]} 17. Nd4 {[%clk 0:02:08.3]} 17... Bd7 {[%clk
0:01:22.9]} 18. Qh5 {[%clk 0:01:44.1]} 18... c5 {[%clk 0:01:14.2]} 19. Nf3
{[%clk 0:01:38.1]} 19... Rf5 {[%clk 0:01:12.2]} 20. Qg4 {[%clk 0:01:29]} 20...
Rf6 {[%clk 0:01:02.1]} 21. Qh5 {[%clk 0:00:54.1]} 21... Be8 {[%clk 0:00:51.1]}
22. Qg4 {[%clk 0:00:40.3]} 22... Rg6 {[%clk 0:00:49]} 23. Qf4 {[%clk 0:00:35.6]}
23... Bd6 {[%clk 0:00:47]} 24. Ne5 {[%clk 0:00:35.2]} 24... Rf6 {[%clk
0:00:40.8]} 25. Qg5 {[%clk 0:00:32.6]} 25... Bc6 {[%clk 0:00:34.7]} 26. Nxc6
{[%clk 0:00:30.2]} 26... Qe8 {[%clk 0:00:35.7]} 27. Qxd5 {[%clk 0:00:26.8]}
27... Rc8 {[%clk 0:00:26.9]} 28. Rae1 {[%clk 0:00:26.4]} 28... Qg6 {[%clk
0:00:27.1]} 29. Bxc5 {[%clk 0:00:21.4]} 29... Bxc5 {[%clk 0:00:24.9]} 30. Ne5
{[%clk 0:00:19.4]} 30... Bxf2+ {[%clk 0:00:18.8]} 31. Rxf2 {[%clk 0:00:21.3]}
31... Qg3 {[%clk 0:00:19]} 32. Nf3 {[%clk 0:00:20.5]} 32... Rcf8 {[%clk
0:00:16.3]} 33. Ref1 {[%clk 0:00:19.6]} 33... Rf5 {[%clk 0:00:14]} 34. Qe4
{[%clk 0:00:16]} 34... Rf4 {[%clk 0:00:12.6]} 35. Qe7 {[%clk 0:00:13.5]} 35...
R4f7 {[%clk 0:00:12.6]} 36. Qe1 {[%clk 0:00:11.2]} 36... Rf6 {[%clk 0:00:12.9]}
37. Qd2 {[%clk 0:00:11.8]} 37... Rg6 {[%clk 0:00:13.3]} 38. Nd4 {[%clk
0:00:11.5]} 38... Rg8 {[%clk 0:00:10.4]} 39. Rf8 {[%clk 0:00:09.8]} 39... Qxh3
{[%clk 0:00:10.8]} 40. Rxg8+ {[%clk 0:00:09.7]} 40... Kxg8 {[%clk 0:00:12.7]}
41. Qe2 {[%clk 0:00:07.5]} 41... h6 {[%clk 0:00:11.5]} 42. Qe8+ {[%clk
0:00:07.2]} 42... Kh7 {[%clk 0:00:12.9]} 43. Qe4 {[%clk 0:00:07.1]} 43... Qh5
{[%clk 0:00:11.7]} 44. Qf3 {[%clk 0:00:04.5]} 44... c5 {[%clk 0:00:12.3]} 45.
Qxh5 {[%clk 0:00:04.7]} 45... cxd4 {[%clk 0:00:13.1]} 46. cxd4 {[%clk
0:00:04.5]} 46... Rg5 {[%clk 0:00:13.3]} 47. Qf3 {[%clk 0:00:04.7]} 47... h5
{[%clk 0:00:14]} 48. Qe4+ {[%clk 0:00:05.4]} 48... Kh6 {[%clk 0:00:13.9]} 49.
Rf5 {[%clk 0:00:06.1]} 49... Rg4 {[%clk 0:00:14.6]} 50. Qe5 {[%clk 0:00:06.2]}
50... g6 {[%clk 0:00:14.8]} 51. Rf8 {[%clk 0:00:06.2]} 51... Rg5 {[%clk
0:00:14.3]} 52. Rh8# {[%clk 0:00:06.3]} 1-0

[Event "*** Titled Tuesday Blitz"]
[Site "Chess.com"]
[Date "2018.01.02"]
[Round "2"]
[White "FairChess_on_YouTube"]
[Black "chidori_boruto"]
[Result "1/2-1/2"]
[WhiteElo "2736"]
[BlackElo "2526"]
[TimeControl "180+2"]
[EndTime "13:23:58 PST"]
[Termination "Game drawn by repetition"]

1. e4 {[%clk 0:03:01.9]} 1... c6 {[%clk 0:03:00.4]} 2. d4 {[%clk 0:03:02]} 2...
d5 {[%clk 0:03:01.2]} 3. e5 {[%clk 0:03:02.9]} 3... Bf5 {[%clk 0:03:01.7]} 4. h4
{[%clk 0:03:01.5]} 4... h5 {[%clk 0:03:02.1]} 5. Bg5 {[%clk 0:02:59.1]} 5... Qb6
{[%clk 0:02:53.7]} 6. Bd3 {[%clk 0:02:59.9]} 6... Bxd3 {[%clk 0:02:32.2]} 7.
Qxd3 {[%clk 0:03:01.8]} 7... Qxb2 {[%clk 0:02:26.4]} 8. e6 {[%clk 0:02:55.5]}
8... Qxa1 {[%clk 0:01:41.2]} 9. Qb3 {[%clk 0:02:56.3]} 9... fxe6 {[%clk
0:01:20.1]} 10. Nf3 {[%clk 0:02:37.8]} 10... Nd7 {[%clk 0:01:19.6]} 11. O-O
{[%clk 0:02:36.1]} 11... O-O-O {[%clk 0:01:11.3]} 12. Bd2 {[%clk 0:02:23.1]}
12... Nc5 {[%clk 0:01:02.9]} 13. dxc5 {[%clk 0:02:23.5]} 13... Qf6 {[%clk
0:01:02.8]} 14. Bg5 {[%clk 0:01:28.4]} 14... Qg6 {[%clk 0:00:56.1]} 15. Nc3
{[%clk 0:01:21.5]} 15... Rd7 {[%clk 0:00:25.4]} 16. Ne5 {[%clk 0:01:18.8]} 16...
Qe8 {[%clk 0:00:26.5]} 17. Nxd7 {[%clk 0:01:09.7]} 17... Qxd7 {[%clk 0:00:28.4]}
18. Qa3 {[%clk 0:01:10.2]} 18... a6 {[%clk 0:00:22.7]} 19. Bf4 {[%clk
0:01:06.7]} 19... Nf6 {[%clk 0:00:19.9]} 20. Rb1 {[%clk 0:01:07.5]} 20... Kd8
{[%clk 0:00:18.9]} 21. Na4 {[%clk 0:00:58.9]} 21... e5 {[%clk 0:00:18.8]} 22.
Bxe5 {[%clk 0:00:58.3]} 22... Ke8 {[%clk 0:00:20]} 23. Nb6 {[%clk 0:00:49.7]}
23... Qf5 {[%clk 0:00:19.3]} 24. Bg3 {[%clk 0:00:34.5]} 24... Ne4 {[%clk
0:00:18.4]} 25. Na8 {[%clk 0:00:32.3]} 25... e6 {[%clk 0:00:15.2]} 26. Nc7+
{[%clk 0:00:25.3]} 26... Kf7 {[%clk 0:00:15.4]} 27. Rxb7 {[%clk 0:00:25.7]}
27... Kg6 {[%clk 0:00:15]} 28. Nxa6 {[%clk 0:00:23.6]} 28... Kh7 {[%clk
0:00:12]} 29. Qe3 {[%clk 0:00:19.9]} 29... Nxg3 {[%clk 0:00:07.3]} 30. Qxg3
{[%clk 0:00:19.5]} 30... Qxc2 {[%clk 0:00:08.6]} 31. Kh2 {[%clk 0:00:19.8]}
31... Qg6 {[%clk 0:00:06.1]} 32. Nc7 {[%clk 0:00:19.5]} 32... Qxg3+ {[%clk
0:00:06.6]} 33. fxg3 {[%clk 0:00:21.1]} 33... Bxc5 {[%clk 0:00:06.7]} 34. Nxe6
{[%clk 0:00:22.5]} 34... Bd6 {[%clk 0:00:07.5]} 35. Rxg7+ {[%clk 0:00:21.7]}
35... Kh6 {[%clk 0:00:08.5]} 36. Rd7 {[%clk 0:00:23.3]} 36... Be5 {[%clk
0:00:09]} 37. Ng5 {[%clk 0:00:24.3]} 37... Re8 {[%clk 0:00:07.5]} 38. Nf7+
{[%clk 0:00:20.2]} 38... Kg6 {[%clk 0:00:08.6]} 39. Nxe5+ {[%clk 0:00:21.8]}
39... Rxe5 {[%clk 0:00:10.4]} 40. Rd6+ {[%clk 0:00:23.2]} 40... Kf5 {[%clk
0:00:11.8]} 41. Rxc6 {[%clk 0:00:24.7]} 41... Ke4 {[%clk 0:00:13]} 42. Rc1
{[%clk 0:00:22.7]} 42... Kd3 {[%clk 0:00:08.9]} 43. g4 {[%clk 0:00:22]} 43...
hxg4 {[%clk 0:00:08.8]} 44. Kg3 {[%clk 0:00:23]} 44... Kd2 {[%clk 0:00:09.2]}
45. Rc5 {[%clk 0:00:23.3]} 45... Re3+ {[%clk 0:00:06.6]} 46. Kxg4 {[%clk
0:00:23.6]} 46... d4 {[%clk 0:00:08.3]} 47. Rd5 {[%clk 0:00:22.8]} 47... d3
{[%clk 0:00:09.5]} 48. Kh5 {[%clk 0:00:22.5]} 48... Rg3 {[%clk 0:00:08.9]} 49.
a4 {[%clk 0:00:20]} 49... Kc2 {[%clk 0:00:06.2]} 50. a5 {[%clk 0:00:18.6]} 50...
d2 {[%clk 0:00:06.7]} 51. a6 {[%clk 0:00:18.8]} 51... Rd3 {[%clk 0:00:07.2]} 52.
Rc5+ {[%clk 0:00:17.9]} 52... Kb3 {[%clk 0:00:08.5]} 53. Rb5+ {[%clk 0:00:18.9]}
53... Kc2 {[%clk 0:00:08.9]} 54. Rc5+ {[%clk 0:00:19.7]} 54... Kb2 {[%clk
0:00:10.1]} 55. Rb5+ {[%clk 0:00:20.7]} 55... Kc2 {[%clk 0:00:10.6]} 56. Rc5+
{[%clk 0:00:21.8]} 56... Kb2 {[%clk 0:00:11.9]} 57. Rb5+ {[%clk 0:00:23.1]}
57... Kc2 {[%clk 0:00:10.7]} 58. Rc5+ {[%clk 0:00:21.6]} 58... Kb2 {[%clk
0:00:10.9]} 59. Rb5+ {[%clk 0:00:22.9]} 59... Kc2 {[%clk 0:00:11.8]} 1/2-1/2

[Event "*** Titled Tuesday Blitz"]
[Site "Chess.com"]
[Date "2018.01.02"]
[Round "2"]
[White "severomorskij"]
[Black "eldur16"]
[Result "1-0"]
[WhiteElo "2660"]
[BlackElo "2482"]
[TimeControl "180+2"]
[EndTime "13:24:03 PST"]
[Termination "severomorskij won by resignation"]

1. d4 {[%clk 0:03:01.9]} 1... Nf6 {[%clk 0:03:00.2]} 2. c4 {[%clk 0:03:02]} 2...
e6 {[%clk 0:03:00.8]} 3. Nf3 {[%clk 0:02:59.7]} 3... Bb4+ {[%clk 0:03:01.5]} 4.
Nbd2 {[%clk 0:02:59.4]} 4... b6 {[%clk 0:03:02.4]} 5. a3 {[%clk 0:02:58.7]} 5...
Bxd2+ {[%clk 0:03:03.4]} 6. Qxd2 {[%clk 0:02:59]} 6... Bb7 {[%clk 0:03:03.7]} 7.
e3 {[%clk 0:03:00.1]} 7... a5 {[%clk 0:03:03.2]} 8. b3 {[%clk 0:03:00.4]} 8...
d6 {[%clk 0:02:56]} 9. Bb2 {[%clk 0:03:00.5]} 9... Nbd7 {[%clk 0:02:56.5]} 10.
Be2 {[%clk 0:03:01.6]} 10... O-O {[%clk 0:02:55]} 11. O-O {[%clk 0:03:02.4]}
11... Ne4 {[%clk 0:02:55.3]} 12. Qc2 {[%clk 0:03:03.1]} 12... f5 {[%clk
0:02:56.3]} 13. Rfd1 {[%clk 0:02:48.9]} 13... Ndf6 {[%clk 0:02:55.4]} 14. h3
{[%clk 0:02:42]} 14... Qe7 {[%clk 0:02:50.4]} 15. b4 {[%clk 0:02:32]} 15... c5
{[%clk 0:02:34.1]} 16. b5 {[%clk 0:02:29]} 16... d5 {[%clk 0:02:29.1]} 17. dxc5
{[%clk 0:02:25.1]} 17... Nxc5 {[%clk 0:02:27.1]} 18. cxd5 {[%clk 0:02:12.3]}
18... Bxd5 {[%clk 0:02:27]} 19. Nd4 {[%clk 0:02:06.7]} 19... Rac8 {[%clk
0:02:26.5]} 20. Nc6 {[%clk 0:01:52.4]} 20... Bxc6 {[%clk 0:02:25.4]} 21. bxc6
{[%clk 0:01:54.3]} 21... Rxc6 {[%clk 0:02:26.4]} 22. Bb5 {[%clk 0:01:55.1]}
22... Rcc8 {[%clk 0:02:24.6]} 23. Be5 {[%clk 0:01:45.1]} 23... Ncd7 {[%clk
0:02:20.7]} 24. Bxf6 {[%clk 0:01:10.5]} 24... Nxf6 {[%clk 0:02:12.1]} 25. Qb3
{[%clk 0:01:05.1]} 25... Rc5 {[%clk 0:01:53.6]} 26. Bc4 {[%clk 0:01:02]} 26...
Kf7 {[%clk 0:01:54.5]} 27. Rd4 {[%clk 0:00:52.3]} 27... Rfc8 {[%clk 0:01:51.1]}
28. Rad1 {[%clk 0:00:52.3]} 28... R8c7 {[%clk 0:01:46.8]} 29. a4 {[%clk
0:00:47.7]} 29... g5 {[%clk 0:01:35]} 30. Qd3 {[%clk 0:00:35]} 30... Kg6 {[%clk
0:01:28.1]} 31. Bb5 {[%clk 0:00:22.5]} 31... Rc1 {[%clk 0:01:23.8]} 32. Rd6
{[%clk 0:00:14.5]} 32... Nd5 {[%clk 0:01:07.6]} 33. Qxd5 {[%clk 0:00:13.5]}
33... Qf6 {[%clk 0:00:54.3]} 34. Qd4 {[%clk 0:00:10.6]} 34... Qxd4 {[%clk
0:00:40.1]} 35. Rxd4 {[%clk 0:00:10.7]} 35... Kf6 {[%clk 0:00:41.2]} 36. Rxc1
{[%clk 0:00:09.6]} 36... Rxc1+ {[%clk 0:00:42]} 37. Kh2 {[%clk 0:00:11.1]} 37...
Ke5 {[%clk 0:00:42.5]} 38. Rd7 {[%clk 0:00:10.3]} 38... Rc2 {[%clk 0:00:41.5]}
39. f3 {[%clk 0:00:09.7]} 39... h5 {[%clk 0:00:41.2]} 40. Rg7 {[%clk 0:00:07.8]}
40... Kf6 {[%clk 0:00:41.2]} 41. Rb7 {[%clk 0:00:08.6]} 41... Rc3 {[%clk
0:00:42]} 42. e4 {[%clk 0:00:08]} 42... fxe4 {[%clk 0:00:41.7]} 43. fxe4 {[%clk
0:00:09.4]} 43... Re3 {[%clk 0:00:42.6]} 44. Rxb6 {[%clk 0:00:09.7]} 44... g4
{[%clk 0:00:43.6]} 45. hxg4 {[%clk 0:00:10]} 45... hxg4 {[%clk 0:00:44.5]} 46.
Ra6 {[%clk 0:00:10.1]} 46... Rxe4 {[%clk 0:00:41.7]} 47. Rxa5 {[%clk 0:00:10.6]}
47... Re3 {[%clk 0:00:42.3]} 48. Ra8 {[%clk 0:00:10.9]} 48... Ra3 {[%clk
0:00:41.3]} 49. Rg8 {[%clk 0:00:10.7]} 49... Kf5 {[%clk 0:00:41.6]} 50. Rf8+
{[%clk 0:00:11.4]} 50... Kg5 {[%clk 0:00:42.3]} 51. Rg8+ {[%clk 0:00:12.1]}
51... Kh4 {[%clk 0:00:42.5]} 52. g3+ {[%clk 0:00:12.2]} 52... Kh5 {[%clk
0:00:43.6]} 53. Kg2 {[%clk 0:00:13]} 53... Ra2+ {[%clk 0:00:44.7]} 54. Kf1
{[%clk 0:00:14]} 54... Ra1+ {[%clk 0:00:45.8]} 55. Kf2 {[%clk 0:00:15]} 55...
Ra2+ {[%clk 0:00:46.8]} 56. Ke3 {[%clk 0:00:15.8]} 56... Ra3+ {[%clk 0:00:47.8]}
57. Kf4 {[%clk 0:00:10.1]} 57... Rf3+ {[%clk 0:00:48.7]} 58. Ke5 {[%clk
0:00:10.9]} 58... Rxg3 {[%clk 0:00:49.8]} 59. a5 {[%clk 0:00:10.5]} 59... Ra3
{[%clk 0:00:49.8]} 60. a6 {[%clk 0:00:11.4]} 60... g3 {[%clk 0:00:50.8]} 61. Kf4
{[%clk 0:00:11.4]} 61... Ra5 {[%clk 0:00:48.6]} 62. Be2+ {[%clk 0:00:10.1]}
62... Kh6 {[%clk 0:00:48.7]} 63. Rxg3 {[%clk 0:00:10.6]} 1-0

[Event "*** Titled Tuesday Blitz"]
[Site "Chess.com"]
[Date "2018.01.02"]
[Round "2"]
[White "Konavets"]
[Black "Tonychess32"]
[Result "1-0"]
[WhiteElo "2746"]
[BlackElo "2410"]
[TimeControl "180+2"]
[EndTime "13:24:05 PST"]
[Termination "Konavets won by resignation"]

1. c4 {[%clk 0:03:01.3]} 1... Nf6 {[%clk 0:02:55.5]} 2. Nc3 {[%clk 0:03:02.3]}
2... b6 {[%clk 0:02:55.2]} 3. g3 {[%clk 0:03:02.1]} 3... Bb7 {[%clk 0:02:56.4]}
4. Nf3 {[%clk 0:03:03.4]} 4... g6 {[%clk 0:02:55.5]} 5. Bg2 {[%clk 0:03:04.5]}
5... Bg7 {[%clk 0:02:56.6]} 6. O-O {[%clk 0:03:06.1]} 6... O-O {[%clk 0:02:58]}
7. Qc2 {[%clk 0:03:07.8]} 7... c5 {[%clk 0:02:58.5]} 8. Rd1 {[%clk 0:02:56.7]}
8... Nc6 {[%clk 0:02:55.5]} 9. d4 {[%clk 0:02:57.8]} 9... cxd4 {[%clk
0:02:54.5]} 10. Nxd4 {[%clk 0:02:59.7]} 10... Nxd4 {[%clk 0:02:55.6]} 11. Rxd4
{[%clk 0:03:01.6]} 11... Bxg2 {[%clk 0:02:56.9]} 12. Kxg2 {[%clk 0:03:03.5]}
12... Qc7 {[%clk 0:02:51.8]} 13. e4 {[%clk 0:02:56.9]} 13... d6 {[%clk
0:02:48.4]} 14. Be3 {[%clk 0:02:56.3]} 14... Ng4 {[%clk 0:02:47.4]} 15. Nd5
{[%clk 0:02:47.9]} 15... Qb7 {[%clk 0:02:47.4]} 16. Rd3 {[%clk 0:02:47.4]} 16...
Nxe3+ {[%clk 0:02:38.1]} 17. Nxe3 {[%clk 0:02:48]} 17... Qxe4+ {[%clk 0:02:38]}
18. f3 {[%clk 0:02:49.3]} 18... Qb7 {[%clk 0:02:37.4]} 19. Re1 {[%clk 0:02:49]}
19... Rac8 {[%clk 0:02:38.5]} 20. b3 {[%clk 0:02:50]} 20... b5 {[%clk
0:02:39.4]} 21. Qd2 {[%clk 0:02:50.7]} 21... Bh6 {[%clk 0:02:38.9]} 22. Rd4
{[%clk 0:02:48.9]} 22... bxc4 {[%clk 0:02:38.5]} 23. bxc4 {[%clk 0:02:48.9]}
23... Rc7 {[%clk 0:02:36.1]} 24. Rh4 {[%clk 0:02:49.2]} 24... Bg7 {[%clk
0:02:10.2]} 25. Nd5 {[%clk 0:02:49.7]} 25... Rd7 {[%clk 0:02:06.2]} 26. Qg5
{[%clk 0:02:45.1]} 26... Qb2+ {[%clk 0:01:47.3]} 27. Kh3 {[%clk 0:02:45.5]}
27... e6 {[%clk 0:01:31.4]} 28. Ne7+ {[%clk 0:02:46.4]} 28... Rxe7 {[%clk
0:01:32.2]} 29. Qxe7 {[%clk 0:02:46.7]} 29... Bf6 {[%clk 0:01:33.6]} 30. Qxd6
{[%clk 0:02:07.9]} 30... Rd8 {[%clk 0:01:34.7]} 31. Qf4 {[%clk 0:01:55.5]} 31...
Rd2 {[%clk 0:01:32.3]} 32. Rh6 {[%clk 0:01:41.7]} 32... Kg7 {[%clk 0:01:01]} 33.
Rh1 {[%clk 0:01:35.5]} 33... Rd4 {[%clk 0:00:51.1]} 34. Rxh7+ {[%clk 0:01:32.2]}
34... Kxh7 {[%clk 0:00:50.6]} 35. Qxf6 {[%clk 0:01:33.8]} 35... Qd2 {[%clk
0:00:35.6]} 36. Qxf7+ {[%clk 0:01:34]} 36... Kh6 {[%clk 0:00:37.1]} 37. Qf8+
{[%clk 0:01:32.9]} 37... Kh7 {[%clk 0:00:37.8]} 38. Qe7+ {[%clk 0:01:34.1]}
38... Kh6 {[%clk 0:00:39]} 39. Rb1 {[%clk 0:01:29.2]} 39... Rd7 {[%clk
0:00:33.3]} 40. Qf8+ {[%clk 0:01:29.2]} 40... Kh7 {[%clk 0:00:22.3]} 41. Rb8
{[%clk 0:01:28.6]} 41... Qh6+ {[%clk 0:00:23.2]} 42. Qxh6+ {[%clk 0:01:29]}
42... Kxh6 {[%clk 0:00:25.1]} 43. Re8 {[%clk 0:01:28.6]} 43... Rd6 {[%clk
0:00:23.6]} 44. Re7 {[%clk 0:01:30]} 44... Ra6 {[%clk 0:00:23.1]} 45. f4 {[%clk
0:01:31.5]} 45... Rxa2 {[%clk 0:00:21.6]} 46. Rxe6 {[%clk 0:01:32.5]} 46... Kg7
{[%clk 0:00:22.5]} 47. c5 {[%clk 0:01:31.3]} 47... Rc2 {[%clk 0:00:20.6]} 48.
Ra6 {[%clk 0:01:32.3]} 48... Rxc5 {[%clk 0:00:20.1]} 49. Rxa7+ {[%clk
0:01:33.7]} 49... Kf6 {[%clk 0:00:11.5]} 50. Kg4 {[%clk 0:01:24.8]} 50... Rc4
{[%clk 0:00:11.2]} 51. h4 {[%clk 0:01:25.4]} 51... Rc6 {[%clk 0:00:12.2]} 52.
Ra5 {[%clk 0:01:26.5]} 52... Rd6 {[%clk 0:00:13.2]} 53. Re5 {[%clk 0:01:28.1]}
53... Rc6 {[%clk 0:00:14.5]} 54. h5 {[%clk 0:01:28.3]} 54... gxh5+ {[%clk
0:00:15.6]} 55. Kxh5 {[%clk 0:01:30.2]} 55... Rc3 {[%clk 0:00:08.6]} 56. Kh4
{[%clk 0:01:30]} 56... Kg6 {[%clk 0:00:07.3]} 57. g4 {[%clk 0:01:30.8]} 57...
Rf3 {[%clk 0:00:07.2]} 58. Re6+ {[%clk 0:01:31.4]} 58... Kf7 {[%clk 0:00:06.6]}
59. f5 {[%clk 0:01:33.3]} 59... Rb3 {[%clk 0:00:07.4]} 60. Kg5 {[%clk
0:01:34.2]} 60... Rb7 {[%clk 0:00:07.9]} 61. Rg6 {[%clk 0:01:36.1]} 61... Rc7
{[%clk 0:00:08.3]} 62. Rh6 {[%clk 0:01:38]} 62... Kg7 {[%clk 0:00:09]} 63. Rh5
{[%clk 0:01:39.9]} 63... Rc5 {[%clk 0:00:07.5]} 64. Rh6 {[%clk 0:01:40.2]} 64...
Rc7 {[%clk 0:00:08.7]} 65. Ra6 {[%clk 0:01:41.2]} 65... Rb7 {[%clk 0:00:09.5]}
66. Kh5 {[%clk 0:01:42.7]} 66... Rf7 {[%clk 0:00:08.6]} 67. f6+ {[%clk
0:01:41.4]} 67... Kh7 {[%clk 0:00:03.5]} 68. g5 {[%clk 0:01:42.5]} 68... Rf8
{[%clk 0:00:03.6]} 69. g6+ {[%clk 0:01:43.2]} 69... Kg8 {[%clk 0:00:04.7]} 70.
Kh6 {[%clk 0:01:44.2]} 70... Rb8 {[%clk 0:00:04.5]} 71. Ra7 {[%clk 0:01:43.8]}
71... Rc8 {[%clk 0:00:03.8]} 72. Rh7 {[%clk 0:01:44.6]} 72... Rc2 {[%clk
0:00:04.1]} 73. f7+ {[%clk 0:01:44.5]} 1-0